lending/lending_fUSD_20240207
["ID","MTS","AMOUNT","RATE_DAILY","PERIOD"]
[313436272,1707347451765,-500.0,0.00049315,61]
[313436273,1707347451775,-1399.44,0.00049315,61]
[313436274,1707347451784,-500.0,0.00049315,61]
[313436275,1707347451793,-1000.0,0.00049315,40]
[313436276,1707347451803,-500.0,0.00049315,61]
[313436277,1707347451812,-500.0,0.00049315,61]
[313436278,1707347451822,-345.20034914,0.00049315,61]
[313436279,1707347451833,-500.0,0.00049315,61]
[313436280,1707347451842,-500.0,0.00049315,61]
[313436281,1707347451851,-500.0,0.00049315,61]
[313436282,1707347451860,-500.0,0.00049315,61]
[313436283,1707347451869,-500.0,0.00049315,61]
[313436284,1707347451878,-500.0,0.00049315,61]
[313436285,1707347451887,-399.25781439,0.00049315,61]
[313436286,1707347451896,-500.0,0.00049315,61]
[313436287,1707347451906,-500.0,0.00049315,61]
[313436288,1707347451915,-500.0,0.00049315,61]
[313436289,1707347451924,-500.0,0.00049315,61]
[313436290,1707347451933,-1225.78,0.00049315,61]
[313436291,1707347451942,-500.0,0.00049315,7]
[313436292,1707347451952,-500.0,0.00049315,61]
[313436293,1707347451961,-500.0,0.00049315,61]
[313436294,1707347451971,-500.0,0.00049315,61]
[313436295,1707347451981,-599.94730984,0.00049315,61]
[313436296,1707347451991,-521.69319427,0.00049315,61]
[313436297,1707347452002,-500.0,0.00049315,61]
[313436298,1707347452011,-500.0,0.00049315,61]
[313436299,1707347452021,-500.0,0.00049315,61]
[313436300,1707347452030,-1318.1,0.00049315,61]
[313436301,1707347452040,-588.81,0.00049315,61]
[313436302,1707347452049,-500.0,0.00049315,61]
[313436303,1707347452059,-447.96253741,0.00049315,61]
[313436304,1707347452070,-603.49,0.00049315,61]
[313436305,1707347452080,-1023.84,0.00049315,61]
[313436306,1707347452091,-557.41,0.00049315,61]
[313436307,1707347452100,-500.0,0.00049315,61]
[313436308,1707347452110,-1660.22,0.00049315,61]
[313436309,1707347452119,-500.0,0.00049315,61]
[313436310,1707347452129,-678.41,0.00049315,61]
[313436311,1707347452138,-500.0,0.00049315,61]
[313436312,1707347452148,-250.0,0.00049315,61]
[313436313,1707347452158,-500.0,0.00049315,61]
[313436314,1707347452168,-500.0,0.00049315,61]
[313436315,1707347452177,-500.0,0.00049315,61]
[313436316,1707347452186,-870.42,0.00049315,61]
[313436317,1707347452211,-1350.63,0.00049315,61]
[313436318,1707347452220,-500.0,0.00049315,61]
[313436319,1707347452229,-500.0,0.00049315,61]
[313436320,1707347452238,-763.54,0.00049315,61]
[313436321,1707347452247,-500.0,0.00049315,61]
[313436322,1707347452257,-539.69354666,0.00049315,61]
[313436323,1707347452266,-500.0,0.00049315,61]
[313436324,1707347452276,-500.0,0.00049315,61]
[313436325,1707347452285,-900.52,0.00049315,61]
[313436326,1707347452295,-500.0,0.00049315,61]
[313436327,1707347452304,-366.84089921,0.00049315,61]
[313436328,1707347452313,-822.94,0.00049315,61]
[313436329,1707347452323,-721.43,0.00049315,61]
[313436330,1707347452333,-500.0,0.00049315,61]
[313436331,1707347452342,-500.0,0.00049315,61]
[313436332,1707347452352,-500.0,0.00049315,61]
[313436333,1707347452362,-500.0,0.00049315,61]
[313436334,1707347452372,-500.0,0.00049315,61]
[313436335,1707347452382,-679.64,0.00049315,30]
[313436336,1707347452391,-500.0,0.00049315,61]
[313436337,1707347452401,-500.0,0.00049315,61]
[313436338,1707347452411,-483.02792317,0.00049315,61]
[313436339,1707347452421,-500.0,0.00049315,61]
[313436340,1707347452430,-639.99,0.00049315,61]
[313436341,1707347452440,-716.79,0.00049315,61]
[313436342,1707347452460,-677.67,0.00049315,61]
[313436343,1707347452478,-500.0,0.00049315,61]
[313436344,1707347452498,-500.0,0.00049315,61]
[313436345,1707347452518,-951.15,0.00049315,61]
[313436346,1707347452535,-500.0,0.00049315,61]
[313436347,1707347452553,-500.0,0.00049315,61]
[313436348,1707347452571,-527.08,0.00049315,61]
[313436349,1707347452590,-500.0,0.00049315,61]
[313436350,1707347452608,-500.0,0.00049315,61]
[313436351,1707347452628,-500.0,0.00049315,61]
[313436352,1707347452649,-722.05,0.00049315,61]
[313436353,1707347452665,-500.0,0.00049315,61]
[313436354,1707347452681,-1602.94,0.00049315,61]
[313436355,1707347452698,-1186.2,0.00049315,61]
[313436356,1707347452711,-587.67,0.00049315,61]
[313436357,1707347452727,-633.02,0.00049315,61]
[313436358,1707347452742,-500.0,0.00049315,61]
[313436359,1707347452757,-496.75908494,0.00049315,61]
[313436360,1707347452772,-500.0,0.00049315,61]
[313436361,1707347452786,-500.0,0.00049315,61]
[313436362,1707347452801,-904.78,0.00049315,61]
[313436363,1707347452816,-500.0,0.00049315,61]
[313436364,1707347452831,-500.0,0.00049315,61]
[313436365,1707347452846,-500.0,0.00049315,61]
[313436366,1707347452860,-500.0,0.00049315,61]
[313436367,1707347452876,-500.0,0.00049315,61]
[313436368,1707347452890,-1100.98,0.00049315,61]
[313436369,1707347452910,-500.0,0.00049315,61]
[313436370,1707347452925,-500.0,0.00049315,61]
[313436371,1707347452939,-812.93,0.00049315,61]
[313436372,1707347452955,-1847.02,0.00049315,61]
[313436373,1707347452970,-565.02,0.00049315,61]
[313436374,1707347452985,-1007.48,0.00049315,61]
[313436375,1707347453002,-500.0,0.00049315,61]
[313436376,1707347453018,-500.0,0.00049315,61]
[313436377,1707347453033,-500.0,0.00049315,61]
[313436378,1707347453049,-500.0,0.00049315,61]
[313436379,1707347453065,-500.0,0.00049315,61]
[313436380,1707347453081,-500.0,0.00049315,61]
[313436381,1707347453098,-550.05081706,0.00049315,61]
[313436382,1707347453114,-1362.87,0.00049315,61]
[313436383,1707347453129,-871.75,0.00049315,61]
[313436384,1707347453145,-500.0,0.00049315,61]
[313436385,1707347453161,-500.0,0.00049315,61]
[313436386,1707347453178,-1024.3,0.00049315,61]
[313436387,1707347453194,-500.0,0.00049315,61]
[313436388,1707347453210,-1446.27,0.00049315,61]
[313436389,1707347453227,-500.0,0.00049315,61]
[313436390,1707347453242,-672.39,0.00049315,61]
[313436391,1707347453257,-500.0,0.00049315,61]
[313436392,1707347453273,-500.0,0.00049315,61]
[313436393,1707347453288,-500.0,0.00049315,61]
[313436394,1707347453305,-587.15,0.00049315,61]
[313436395,1707347453319,-500.0,0.00049315,61]
[313436396,1707347453335,-500.0,0.00049315,61]
[313436397,1707347453351,-500.0,0.00049315,61]
[313436398,1707347453368,-865.24,0.00049315,61]
[313436399,1707347453384,-267.13469851,0.00049315,61]
[313436400,1707347453399,-706.96,0.00049315,61]
[313436401,1707347453414,-1651.05,0.00049315,2]
[313436402,1707347453430,-500.0,0.00049315,61]
[313436403,1707347453445,-500.0,0.00049315,61]
[313436404,1707347453460,-500.0,0.00049315,61]
[313436405,1707347453474,-500.0,0.00049315,61]
[313436406,1707347453490,-500.0,0.00049315,61]
[313436407,1707347453505,-500.0,0.00049315,7]
[313436408,1707347453520,-629.18,0.00049315,61]
[313436409,1707347453534,-500.0,0.00049315,61]
[313436410,1707347453549,-500.0,0.00049315,61]
[313436411,1707347453564,-500.0,0.00049315,61]
[313436412,1707347453579,-500.0,0.00049315,61]
[313436413,1707347453594,-1072.47,0.00049315,61]
[313436414,1707347453609,-589.77,0.00049315,61]
[313436415,1707347453624,-500.0,0.00049315,61]
[313436416,1707347453640,-500.0,0.00049315,61]
[313436417,1707347453655,-500.0,0.00049315,61]
[313436418,1707347453670,-500.0,0.00049315,61]
[313436419,1707347453684,-500.0,0.00049315,61]
[313436420,1707347453699,-500.0,0.00049315,61]
[313436421,1707347453714,-515.22290983,0.00049315,61]
[313436422,1707347453730,-500.0,0.00049315,61]
[313436423,1707347453745,-855.94,0.00049315,61]
[313436424,1707347453759,-500.0,0.00049315,61]
[313436425,1707347453774,-566.71,0.00049315,61]
[313436426,1707347453790,-638.9,0.00049315,61]
[313436427,1707347453804,-500.0,0.00049315,61]
[313436428,1707347453818,-891.57,0.00049315,61]
[313436429,1707347453833,-500.0,0.00049315,61]
[313436430,1707347453849,-500.0,0.00049315,61]
[313436431,1707347453864,-565.18,0.00049315,61]
[313436432,1707347453879,-500.0,0.00049315,61]
[313436433,1707347453893,-500.0,0.00049315,61]
[313436434,1707347453908,-500.0,0.00049315,61]
[313436435,1707347453924,-1419.61,0.00049315,61]
[313436436,1707347453938,-537.43421087,0.00049315,61]
[313436437,1707347453953,-500.0,0.00049315,61]
[313436438,1707347453968,-500.0,0.00049315,61]
[313436439,1707347453983,-500.0,0.00049315,61]
[313436440,1707347453999,-500.0,0.00049315,61]
[313436441,1707347454014,-500.0,0.00049315,61]
[313436442,1707347454028,-500.0,0.00049315,61]
[313436443,1707347454044,-500.0,0.00049315,61]
[313436444,1707347454058,-500.0,0.00049315,61]
[313436445,1707347454074,-780.46,0.00049315,61]
[313436446,1707347454088,-1854.4,0.00049315,61]
[313436447,1707347454103,-500.0,0.00049315,61]
[313436448,1707347454119,-500.0,0.00049315,61]
[313436449,1707347454133,-500.0,0.00049315,61]
[313436450,1707347454142,-500.0,0.00049315,61]
[313436451,1707347454152,-500.0,0.00049315,61]
[313436452,1707347454162,-1316.79,0.00049315,61]
[313436453,1707347454171,-1708.38,0.00049315,61]
[313436454,1707347454181,-1342.65,0.00049315,61]
[313436455,1707347454190,-500.0,0.00049315,61]
[313436456,1707347454199,-1494.77,0.00049315,61]
[313436457,1707347454209,-500.0,0.00049315,61]
[313436458,1707347454219,-500.0,0.00049315,61]
[313436459,1707347454229,-500.0,0.00049315,61]
[313436460,1707347454238,-579.83544876,0.00049315,61]
[313436461,1707347454248,-500.0,0.00049315,61]
[313436462,1707347454257,-500.0,0.00049315,61]
[313436463,1707347454268,-663.75,0.00049315,61]
[313436464,1707347454277,-500.0,0.00049315,61]
[313436465,1707347454288,-500.0,0.00049315,61]
[313436466,1707347454700,-500.0,0.00049315,61]
[313436467,1707347454744,-500.0,0.00049315,61]
[313436468,1707347454769,-830.96912192,0.00049315,61]
[313436469,1707347454779,-500.0,0.00049315,61]
[313436470,1707347454788,-500.0,0.00049315,61]
[313436471,1707347454797,-1055.96,0.00049315,61]
[313436472,1707347454807,-500.0,0.00049315,61]
[313436473,1707347454816,-1526.79,0.00049315,61]
[313436474,1707347454825,-500.0,0.00049315,61]
[313436475,1707347454837,-1396.27,0.00049315,61]
[313436476,1707347454846,-500.0,0.00049315,61]
[313436477,1707347454855,-500.0,0.00049315,61]
[313436478,1707347454864,-500.0,0.00049315,61]
[313436479,1707347454873,-500.0,0.00049315,61]
[313436480,1707347454883,-500.0,0.00049315,61]
[313436481,1707347454892,-500.0,0.00049315,61]
[313436482,1707347454901,-648.32,0.00049315,61]
[313436483,1707347454910,-505.70849684,0.00049315,61]
[313436484,1707347454919,-500.0,0.00049315,61]
[313436485,1707347454928,-539.92,0.00049315,61]
[313436486,1707347454937,-668.26,0.00049315,60]
[313436487,1707347454946,-500.0,0.00049315,61]
[313436488,1707347454955,-500.0,0.00049315,28]
[313436489,1707347454963,-500.0,0.00049315,61]
[313436490,1707347454972,-500.0,0.00049315,61]
[313436491,1707347454982,-500.0,0.00049315,61]
[313436492,1707347454991,-500.0,0.00049315,61]
[313436493,1707347455002,-500.0,0.00049315,61]
[313436494,1707347455012,-683.03,0.00049315,61]
[313436495,1707347455021,-500.0,0.00049315,61]
[313436496,1707347455030,-683.03,0.00049315,61]
[313436497,1707347455040,-683.03,0.00049315,61]
[313436498,1707347455049,-1429.47,0.00049315,61]
[313436499,1707347455059,-683.03,0.00049315,61]
[313436500,1707347455068,-500.0,0.00049315,61]
[313436501,1707347455078,-683.03,0.00049315,61]
[313436502,1707347455088,-683.03,0.00049315,61]
[313436503,1707347455098,-500.0,0.00049315,61]
[313436504,1707347455107,-683.03,0.00049315,61]
[313436505,1707347455116,-683.03,0.00049315,61]
[313436506,1707347455126,-683.03,0.00049315,61]
[313436507,1707347455135,-683.03,0.00049315,61]
[313436508,1707347455145,-683.03,0.00049315,61]
[313436509,1707347455154,-945.99,0.00049315,61]
[313436510,1707347455163,-683.03,0.00049315,61]
[313436511,1707347455173,-683.03,0.00049315,61]
[313436512,1707347455182,-683.03,0.00049315,61]
[313436513,1707347455192,-1000.0,0.00049315,7]
[313436514,1707347455201,-683.03,0.00049315,61]
[313436515,1707347455210,-500.0,0.00049315,61]
[313436516,1707347455220,-683.03,0.00049315,61]
[313436517,1707347455229,-500.0,0.00049315,30]
[313436518,1707347455239,-500.0,0.00049315,61]
[313436519,1707347455249,-500.0,0.00049315,61]
[313436520,1707347455258,-683.03,0.00049315,61]
[313436521,1707347455267,-539.85251151,0.00049315,61]
[313436522,1707347455281,-500.0,0.00049315,61]
[313436523,1707347455291,-500.0,0.00049315,61]
[313436524,1707347455301,-500.0,0.00049315,61]
[313436525,1707347455310,-500.0,0.00049315,61]
[313436526,1707347455320,-500.0,0.00049315,61]
[313436527,1707347455330,-500.0,0.00049315,61]
[313436528,1707347455341,-500.0,0.00049315,61]
[313436529,1707347455350,-500.0,0.00049315,61]
[313436530,1707347455360,-500.0,0.00049315,61]
[313436531,1707347455369,-500.0,0.00049315,61]
[313436532,1707347455379,-2011.65,0.00049315,61]
[313436533,1707347455389,-500.0,0.00049315,61]
[313436534,1707347455399,-500.0,0.00049315,61]
[313436535,1707347455408,-500.0,0.00049315,61]
[313436536,1707347455418,-179.79,0.00049315,61]
[313436537,1707347455428,-500.0,0.00049315,61]
[313436538,1707347455438,-512.34,0.00049315,61]
[313436539,1707347455448,-1457.18,0.00049315,61]
[313436540,1707347455458,-500.0,0.00049315,61]
[313436541,1707347455468,-500.0,0.00049315,7]
[313436542,1707347455477,-500.0,0.00049315,61]
[313436543,1707347455487,-500.0,0.00049315,61]
[313436544,1707347455497,-500.0,0.00049315,61]
[313436545,1707347455506,-500.0,0.00049315,61]
[313436546,1707347455515,-500.0,0.00049315,61]
[313436547,1707347455525,-534.84548727,0.00049315,61]
[313436548,1707347455535,-1645.54,0.00049315,61]
[313436549,1707347455544,-1020.4,0.00049315,61]
[313436550,1707347455553,-500.0,0.00049315,61]
[313436551,1707347455563,-929.02,0.00049315,61]
[313436552,1707347455572,-500.0,0.00049315,61]
[313436553,1707347455581,-1068.5,0.00049315,2]
[313436554,1707347455592,-500.0,0.00049315,61]
[313436555,1707347455601,-1103.04668102,0.00049315,2]
[313436556,1707347455610,-889.95,0.00049315,61]
[313436557,1707347455619,-500.0,0.00049315,61]
[313436558,1707347455628,-500.0,0.00049315,61]
[313436559,1707347455638,-500.0,0.00049315,61]
[313436560,1707347455647,-500.0,0.00049315,61]
[313436561,1707347455656,-500.0,0.00049315,61]
[313436562,1707347455666,-500.0,0.00049315,61]
[313436563,1707347455675,-500.0,0.00049315,61]
[313436564,1707347455684,-1176.13,0.00049315,61]
[313436565,1707347455694,-500.0,0.00049315,61]
[313436566,1707347455703,-500.0,0.00049315,61]
[313436567,1707347455712,-10000.0,0.00049315,61]
[313436568,1707347455722,-500.0,0.00049315,61]
[313436569,1707347455731,-500.0,0.00049315,61]
[313436570,1707347455741,-263.220354,0.00049315,2]
[313436571,1707347455750,-781.11,0.00049315,61]
[313436572,1707347455759,-263.220354,0.00049315,2]
[313436573,1707347455769,-263.220354,0.00049315,2]
[313436574,1707347455783,-500.0,0.00049315,61]
[313436575,1707347455793,-500.0,0.00049315,61]
[313436576,1707347455802,-500.0,0.00049315,61]
[313436577,1707347455812,-805.69,0.00049315,61]
[313436578,1707347455823,-500.0,0.00049315,61]
[313436579,1707347455833,-500.0,0.00049315,61]
[313436580,1707347455844,-263.220354,0.00049315,2]
[313436581,1707347455853,-500.0,0.00049315,61]
[313436582,1707347455862,-263.220354,0.00049315,2]
[313436583,1707347455872,-500.0,0.00049315,61]
[313436584,1707347455882,-500.0,0.00049315,61]
[313436585,1707347455892,-263.220358,0.00049315,2]
[313436586,1707347455901,-500.0,0.00049315,61]
[313436587,1707347455911,-500.0,0.00049315,61]
[313436588,1707347455920,-500.0,0.00049315,61]
[313436589,1707347455931,-500.0,0.00049315,61]
[313436590,1707347455941,-500.0,0.00049315,61]
[313436591,1707347455950,-500.0,0.00049315,61]
[313436592,1707347455960,-500.0,0.00049315,61]
[313436593,1707347455970,-500.0,0.00049315,61]
[313436594,1707347455979,-500.0,0.00049315,61]
[313436595,1707347455989,-584.9948188,0.00049315,61]
[313436596,1707347455999,-500.0,0.00049315,61]
[313436597,1707347456009,-500.0,0.00049315,61]
[313436598,1707347456019,-500.0,0.00049315,61]
[313436599,1707347456029,-500.0,0.00049315,61]
[313436600,1707347456040,-1791.63,0.00049315,61]
[313436601,1707347456050,-414.82861567,0.00049315,61]
[313436602,1707347456059,-500.0,0.00049315,61]
[313436603,1707347456069,-500.0,0.00049315,61]
[313436604,1707347456081,-500.0,0.00049315,61]
[313436605,1707347456092,-784.67,0.00049315,61]
[313436606,1707347456101,-792.24,0.00049315,61]
[313436607,1707347456111,-500.0,0.00049315,61]
[313436608,1707347456125,-10000.0,0.00049315,61]
[313436609,1707347456135,-500.57153487,0.00049315,61]
[313436610,1707347456144,-299.08200082,0.00049315,61]
[313436611,1707347456154,-500.0,0.00049315,61]
[313436612,1707347456163,-919.17,0.00049315,61]
[313436613,1707347456173,-500.0,0.00049315,61]
[313436614,1707347456182,-844.83,0.00049315,61]
[313436615,1707347456192,-500.0,0.00049315,61]
[313436616,1707347456201,-613.56,0.00049315,61]
[313436617,1707347456211,-500.0,0.00049315,61]
[313436618,1707347456220,-500.0,0.00049315,61]
[313436619,1707347456230,-535.33,0.00049315,61]
[313436620,1707347456239,-500.0,0.00049315,31]
[313436621,1707347456248,-536.8272176,0.00049315,61]
[313436622,1707347456258,-500.0,0.00049315,61]
[313436623,1707347456267,-538.45,0.00049315,61]
[313436624,1707347456277,-565.98197668,0.00049315,61]
[313436625,1707347456286,-500.0,0.00049315,61]
[313436626,1707347456296,-614.34734248,0.00049315,61]
[313436627,1707347456306,-502.21611516,0.00049315,61]
[313436628,1707347456316,-226.02552426,0.00049315,61]
[313436629,1707347456326,-1219.52,0.00049315,61]
[313436630,1707347456337,-500.0,0.00049315,61]
[313436631,1707347456347,-500.0,0.00049315,61]
[313436632,1707347456357,-1561.58,0.00049315,61]
[313436633,1707347456367,-994.99,0.00049315,61]
[313436634,1707347456377,-1749.86,0.00049315,61]
[313436635,1707347456387,-500.0,0.00049315,61]
[313436636,1707347456396,-518.76719426,0.00049315,61]
[313436637,1707347456406,-557.49759053,0.00049315,61]
[313436638,1707347456416,-620.9,0.00049315,61]
[313436639,1707347456425,-500.0,0.00049315,61]
[313436640,1707347456435,-513.6129249,0.00049315,61]
[313436641,1707347456445,-500.0,0.00049315,61]
[313436642,1707347456454,-500.0,0.00049315,61]
[313436643,1707347456464,-692.32,0.00049315,61]
[313436644,1707347456473,-908.6,0.00049315,61]
[313436645,1707347456483,-500.0,0.00049315,61]
[313436646,1707347456493,-500.0,0.00049315,61]
[313436647,1707347456502,-500.0,0.00049315,61]
[313436648,1707347456511,-500.0,0.00049315,61]
[313436649,1707347456520,-762.27,0.00049315,61]
[313436650,1707347456530,-500.0,0.00049315,61]
[313436651,1707347456541,-1508.76,0.00049315,61]
[313436652,1707347456550,-500.0,0.00049315,61]
[313436653,1707347456561,-500.0,0.00049315,61]
[313436654,1707347456571,-500.0,0.00049315,61]
[313436655,1707347456581,-500.0,0.00049315,61]
[313436656,1707347456591,-668.34,0.00049315,61]
[313436657,1707347456601,-500.0,0.00049315,61]
[313436658,1707347456611,-500.0,0.00049315,61]
[313436659,1707347456621,-500.0,0.00049315,61]
[313436660,1707347456631,-500.0,0.00049315,61]
[313436661,1707347456640,-593.96,0.00049315,61]
[313436662,1707347456649,-500.0,0.00049315,61]
[313436663,1707347456659,-630.53253456,0.00049315,61]
[313436664,1707347456670,-500.0,0.00049315,61]
[313436665,1707347456680,-500.0,0.00049315,61]
[313436666,1707347456690,-500.0,0.00049315,61]
[313436667,1707347456700,-500.0,0.00049315,61]
[313436668,1707347456710,-500.0,0.00049315,61]
[313436669,1707347456720,-500.0,0.00049315,61]
[313436670,1707347456731,-500.0,0.00049315,61]
[313436671,1707347456741,-500.0,0.00049315,61]
[313436672,1707347456751,-500.0,0.00049315,61]
[313436673,1707347456761,-1387.15,0.00049315,61]
[313436674,1707347456770,-500.0,0.00049315,61]
[313436675,1707347456780,-500.0,0.00049315,61]
[313436676,1707347456790,-500.0,0.00049315,61]
[313436677,1707347456812,-500.0,0.00049315,61]
[313436678,1707347456822,-500.0,0.00049315,61]
[313436679,1707347456832,-500.0,0.00049315,61]
[313436680,1707347456842,-500.0,0.00049315,61]
[313436681,1707347456852,-500.0,0.00049315,61]
[313436682,1707347456862,-1030.92,0.00049315,61]
[313436683,1707347456872,-500.0,0.00049315,61]
[313436684,1707347456882,-506.5,0.00049315,61]
[313436685,1707347456891,-500.0,0.00049315,61]
[313436686,1707347456901,-529.62476553,0.00049315,61]
[313436687,1707347456912,-500.0,0.00049315,61]
[313436688,1707347456921,-504.52,0.00049315,61]
[313436689,1707347456931,-837.36,0.00049315,61]
[313436690,1707347456940,-500.0,0.00049315,61]
[313436691,1707347456950,-823.28,0.00049315,61]
[313436692,1707347456959,-1199.97,0.00049315,61]
[313436693,1707347456969,-500.0,0.00049315,61]
[313436694,1707347456978,-500.0,0.00049315,61]
[313436695,1707347456988,-500.0,0.00049315,61]
[313436696,1707347457001,-1675.14,0.00049315,61]
[313436697,1707347457010,-690.49,0.00049315,61]
[313436698,1707347457020,-500.0,0.00049315,61]
[313436699,1707347457030,-500.0,0.00049315,61]
[313436700,1707347457040,-500.0,0.00049315,61]
[313436701,1707347457050,-500.0,0.00049315,61]
[313436702,1707347457060,-868.52,0.00049315,61]
[313436703,1707347457070,-1013.87,0.00049315,31]
[313436704,1707347457081,-500.0,0.00049315,61]
[313436705,1707347457090,-500.0,0.00049315,61]
[313436706,1707347457100,-500.0,0.00049315,61]
[313436707,1707347457109,-512.67546292,0.00049315,61]
[313436708,1707347457119,-878.73,0.00049315,61]
[313436709,1707347457129,-532.3,0.00049315,61]
[313436710,1707347457139,-1000.0,0.00049315,7]
[313436711,1707347457148,-224.15284317,0.00049315,61]
[313436712,1707347457158,-930.05,0.00049315,61]
[313436713,1707347457168,-681.7,0.00049315,61]
[313436714,1707347457177,-500.0,0.00049315,61]
[313436715,1707347457187,-500.0,0.00049315,61]
[313436716,1707347457197,-500.0,0.00049315,61]
[313436717,1707347457206,-500.0,0.00049315,61]
[313436718,1707347457216,-500.0,0.00049315,61]
[313436719,1707347457226,-500.0,0.00049315,61]
[313436720,1707347457236,-767.16,0.00049315,61]
[313436721,1707347457245,-600.25,0.00049315,61]
[313436722,1707347457255,-500.0,0.00049315,61]
[313436723,1707347457265,-533.21,0.00049315,61]
[313436724,1707347457274,-580.88619942,0.00049315,61]
[313436725,1707347457284,-500.0,0.00049315,61]
[313436726,1707347457294,-500.0,0.00049315,61]
[313436727,1707347457303,-926.27,0.00049315,61]
[313436728,1707347457313,-500.0,0.00049315,61]
[313436729,1707347457323,-500.0,0.00049315,61]
[313436730,1707347457333,-2608.45,0.00049315,31]
[313436731,1707347457345,-500.0,0.00049315,61]
[313436732,1707347457355,-625.11377783,0.00049315,61]
[313436733,1707347457365,-500.0,0.00049315,61]
[313436734,1707347457375,-500.0,0.00049315,61]
[313436735,1707347457385,-500.0,0.00049315,61]
[313436736,1707347457395,-1732.8,0.00049315,61]
[313436737,1707347457405,-500.0,0.00049315,61]
[313436738,1707347457415,-500.0,0.00049315,61]
[313436739,1707347457424,-1769.21,0.00049315,61]
[313436740,1707347457434,-500.0,0.00049315,61]
[313436741,1707347457443,-1421.25,0.00049315,61]
[313436742,1707347457453,-500.0,0.00049315,61]
[313436743,1707347457462,-500.0,0.00049315,61]
[313436744,1707347457472,-500.0,0.00049315,61]
[313436745,1707347457482,-615.44,0.00049315,61]
[313436746,1707347457493,-500.0,0.00049315,61]
[313436747,1707347457503,-500.0,0.00049315,61]
[313436748,1707347457513,-500.0,0.00049315,61]
[313436749,1707347457523,-695.44,0.00049315,61]
[313436750,1707347457533,-500.0,0.00049315,61]
[313436751,1707347457543,-500.0,0.00049315,61]
[313436752,1707347457553,-500.0,0.00049315,61]
[313436753,1707347457563,-500.0,0.00049315,61]
[313436754,1707347457573,-500.0,0.00049315,61]
[313436755,1707347457583,-500.0,0.00049315,61]
[313436756,1707347457594,-500.0,0.00049315,61]
[313436757,1707347457603,-500.0,0.00049315,61]
[313436758,1707347457618,-500.0,0.00049315,61]
[313436759,1707347457629,-500.0,0.00049315,61]
[313436760,1707347457638,-500.0,0.00049315,61]
[313436761,1707347457649,-500.0,0.00049315,61]
[313436762,1707347457660,-500.0,0.00049315,61]
[313436763,1707347457670,-645.9,0.00049315,7]
[313436764,1707347457681,-151.1195353,0.00049315,61]
[313436765,1707347457691,-500.0,0.00049315,61]
[313436766,1707347457701,-659.38,0.00049315,61]
[313436767,1707347457712,-500.0,0.00049315,61]
[313436768,1707347457722,-1777.05,0.00049315,61]
[313436769,1707347457732,-500.0,0.00049315,61]
[313436770,1707347457742,-500.0,0.00049315,61]
[313436771,1707347457753,-500.0,0.00049315,61]